bitfinex-derivatives/quotes_SOLF0:USTF0_20250820
["timestamp","ask_amount","ask_price","bid_price","bid_amount"]
[1755655790687,8.70494911,179.66,179.57,146.7488]
[1755655790889,3.13844911,179.66,179.57,141.18]
[1755655791288,3.13844911,179.66,179.58,0.49]
[1755655791490,3.13844911,179.66,179.62,5.5675]
[1755655792294,3.13844911,179.66,179.58,0.49]
[1755655792685,3.13844911,179.66,179.58,5.5686]
[1755655792893,3.13844911,179.66,179.54,0.49]
[1755655793288,3.1,179.66,179.58,5.5685]
[1755655793492,3.1,179.66,179.54,0.49]
[1755655793692,0.03858331,179.62,179.54,0.49]
[1755655793891,0.03858331,179.62,179.6,5.5679]
[1755655794489,0.03858331,179.62,179.61,0.49]
[1755655795287,0.03858331,179.62,179.61,6.6178]
[1755655796300,3.1,179.73,179.67,5.5659]
[1755655796497,3.1,179.73,179.64,0.45]
[1755655797498,3.1,179.73,179.67,0.03620599]
[1755655797987,3.1,179.75,179.67,0.03620599]
[1755655798193,3.1,179.75,179.67,0.48620599]
[1755655798693,373.66,179.78,179.7,5.5647]
[1755655798895,373.66,179.78,179.67,0.48620599]
[1755655798896,3.03,179.77,179.67,0.48620599]
[1755655799097,3.03,179.77,179.67,0.45]
[1755655799298,3.03,179.77,179.71,5.5647]
[1755655800093,373.66,179.78,179.72,0.03683969]
[1755655800296,3.03,179.77,179.72,0.03683969]
[1755655800596,3.06603747,179.77,179.63,0.49]
[1755655800793,8.62913747,179.77,179.63,0.49]
[1755655800998,3.03,179.77,179.63,0.49]
[1755655801704,0.03677993,179.72,179.64,4.56534779]
[1755655801895,0.03677993,179.72,179.66,4.56534779]
[1755655802101,0.03677993,179.72,179.67,4.56534779]
[1755655802301,0.03677993,179.72,179.71,5.5647]
[1755655802601,3.03,179.77,179.68,0.49]
[1755655802796,0.0377226,179.73,179.69,0.49]
[1755655802999,0.0377226,179.73,179.67,4.56534779]
[1755655803200,3.03,179.86,179.72,5.05534779]
[1755655803500,3.03,179.86,179.62,23.36082628]
[1755655803501,3.03,179.86,179.73,5.05534779]
[1755655805307,3.03,179.86,179.76,5.5629]
[1755655805502,3.03,179.86,179.78,0.03975146]
[1755655805700,0.03596278,179.81,179.78,0.03975146]
[1755655806398,3.03,179.8,179.78,0.03975146]
[1755655806604,0.03596278,179.81,179.78,0.03975146]
[1755655806901,0.03596278,179.81,179.78,5.60225146]
[1755655807607,3.03,179.8,179.78,0.03975146]
[1755655807906,0.03596278,179.81,179.78,0.03975146]
[1755655808602,0.03596278,179.81,179.78,0.52975146]
[1755655808999,0.03596278,179.81,179.78,0.03975146]
[1755655809208,0.03596278,179.81,179.8,6.0519]
[1755655811513,0.03596278,179.81,179.8,5.5619]
[1755655813806,0.03596278,179.81,179.78,0.03975146]
[1755655814004,0.03596278,179.81,179.79,0.49]
[1755655814209,0.03596278,179.81,179.8,0.49]
[1755655814409,0.03596278,179.81,179.8,6.0519]
[1755655818910,6.278e-05,179.81,179.8,6.0519]
[1755655822816,6.278e-05,179.81,179.8,5.5619]
[1755655823714,6.278e-05,179.81,179.8,6.0519]
[1755655824311,6.278e-05,179.81,179.8,5.5619]
[1755655824906,3.03006278,179.81,179.8,5.5619]
[1755655825508,3.03006278,179.81,179.78,0.03975146]
[1755655825712,3.03,179.8,179.79,5.5621]
[1755655826711,6.278e-05,179.81,179.78,5.60225146]
[1755655827114,6.278e-05,179.81,179.78,0.03975146]
[1755655827314,6.278e-05,179.81,179.8,5.5619]
[1755655835617,6.278e-05,179.81,179.8,10.12600066]
[1755655836223,6.278e-05,179.81,179.8,5.5619]
[1755655837016,6.278e-05,179.81,179.8,11.68005838]
[1755655837219,6.278e-05,179.81,179.8,6.1219]
[1755655837515,6.278e-05,179.81,179.8,15.29141971]
[1755655837719,6.278e-05,179.81,179.8,14.73141971]
[1755655838615,6.278e-05,179.81,179.8,6.1219]
[1755655839823,0.25,179.94,179.91,5.5585]
[1755655840022,3.36,179.94,179.91,5.5585]
[1755655840620,3.11,179.93,179.92,5.5581]
[1755655840813,3.11,179.92,179.88,4.57480096]
[1755655841123,3.11,179.91,179.88,4.57480096]
[1755655841517,3.11,179.91,179.88,4.61358112]
[1755655842023,3.11,179.93,179.88,4.61358112]
[1755655842421,3.11,179.93,179.91,5.5583]
[1755655842824,3.11,179.93,179.88,5.09358112]
[1755655843217,3.11,180.01,179.91,0.48]
[1755655843420,3.11,180.01,179.95,4.57480096]
[1755655843820,16.7,180.12,179.96,5.5569]
[1755655843821,5.5536,180.07,179.96,5.5569]
[1755655844014,5.5536,180.07,179.96,5.59610845]
[1755655844015,3.11,179.99,179.96,5.59610845]
[1755655844215,3.11,180.06,179.94,4.57480096]
[1755655844421,3.11,180.06,179.95,4.57480096]
[1755655844624,3.11,180.06,179.96,0.04055773]
[1755655845021,3.11,180.06,179.97,5.5564]
[1755655845313,3.11,180.06,179.96,0.04055773]
[1755655845524,3.11,180.06,179.99,5.5559]
[1755655845721,3.11,180.06,179.99,0.04102536]
[1755655847023,3.11,180.05,180.01,5.5554]
[1755655847223,3.11,180.05,179.99,0.04102536]
[1755655847526,3.11,180.05,179.98,4.57480096]
[1755655847725,514.48,180.13,180.0,0.03642436]
[1755655847925,3.11,180.05,180.0,0.03642436]
[1755655848126,514.48,180.13,179.96,4.57480096]
[1755655848326,3.11,180.04,179.96,4.57480096]
[1755655848521,3.11,180.02,180.01,0.03717738]
[1755655848728,3.11,180.02,179.95,4.57480096]
[1755655848928,5.5536,180.07,179.97,5.5566]
[1755655849134,3.11,180.0,179.97,5.5566]
[1755655849523,5.5536,180.07,179.97,5.5566]
[1755655849723,3.11,179.99,179.98,5.5563]
[1755655850128,3.11,179.98,179.94,4.57480096]
[1755655850330,16.7,180.11,179.94,4.57480096]
[1755655850527,19.81,180.1,179.94,4.6098926]
[1755655850726,5.5535,180.08,179.94,4.6098926]
[1755655850932,3.11,180.07,179.94,4.57480096]
[1755655851325,3.11,180.07,180.0,5.5557]
[1755655851830,3.11,180.07,179.94,4.57480096]
[1755655853125,3.11,180.07,179.96,0.52]
[1755655853329,3.11,180.07,180.01,5.5552]
[1755655853626,3.11,180.07,179.96,0.52]
[1755655854130,3.11,180.11,180.02,0.03506192]
[1755655854631,5.5529,180.09,180.02,0.03506192]
[1755655854930,3.11,180.08,180.02,0.03506192]
[1755655855830,3.11,180.08,180.02,5.59016192]
[1755655857430,5.553,180.09,180.03,5.5548]
[1755655857628,3.11,180.08,180.03,5.5548]
[1755655857828,0.03665344,180.08,180.03,5.5548]
[1755655858030,3.11,180.06,180.03,5.5548]
[1755655858235,0.03665344,180.08,180.03,5.5548]
[1755655858635,2.97,180.05,180.04,5.5545]
[1755655859234,0.03665344,180.08,180.02,0.03506192]
[1755655859533,2.97,180.05,180.02,0.03506192]
[1755655859736,3.00665344,180.08,180.02,0.03506192]
[1755655860234,0.03665344,180.08,180.02,0.03506192]
[1755655860433,2.97,180.05,180.02,0.03506192]
[1755655860635,2.97,180.07,179.95,0.52]
[1755655861524,2.97,180.07,179.95,4.57480096]
[1755655861728,2.97,180.07,179.96,0.55]
[1755655861930,0.04106904,180.03,179.96,0.55]
[1755655863631,0.04106904,180.03,179.99,5.5559]
[1755655863833,0.04106904,180.03,179.99,6.1059]
[1755655864235,0.04106904,180.03,180.01,0.55]
[1755655864627,2.97,180.07,179.96,0.55]
[1755655864833,0.03640518,180.04,180.0,5.5555]
[1755655865031,0.03640518,180.04,179.96,0.55]
[1755655865437,0.03640518,180.04,179.95,0.55]
[1755655865839,0.03640518,180.04,179.98,5.556]
[1755655866039,0.03640518,180.04,179.95,0.55]
[1755655866428,3.00640518,180.04,179.99,5.5559]
[1755655866633,3.00640518,180.04,179.99,6.1059]
[1755655866831,3.00640518,180.04,179.99,0.55]
[1755655867434,3.00640518,180.04,180.0,5.5555]
[1755655867642,0.03640518,180.04,180.03,0.55]
[1755655868030,0.03640518,180.04,179.97,4.57480096]
[1755655868031,0.03640518,180.04,180.0,0.55]
[1755655868235,0.03640518,180.04,179.98,0.55]
[1755655869240,0.03640518,180.04,180.03,5.5548]
[1755655869635,0.03640518,180.04,180.01,0.55]
[1755655869939,0.03640518,180.04,180.02,5.555]
[1755655870331,0.03640518,180.04,180.03,5.5548]
[1755655874042,0.03640518,180.04,180.03,6.1048]
[1755655875443,0.03640518,180.04,180.03,5.5548]
[1755655877238,3.00640518,180.04,179.97,5.12480096]
[1755655877940,0.03640518,180.04,179.97,5.12480096]
[1755655878142,0.03640518,180.04,180.0,0.55]
[1755655878337,0.03640518,180.04,180.01,0.55]
[1755655878537,2.97,180.08,180.02,5.5548]
[1755655878840,0.03504641,180.04,179.99,4.57480096]
[1755655879039,0.03504641,180.04,180.01,0.55]
[1755655880041,0.03504641,180.04,180.02,5.5549]
[1755655880440,0.03504641,180.04,180.01,0.55]
[1755655880746,0.03504641,180.04,180.03,5.5548]
[1755655881745,0.03504641,180.04,180.02,5.5551]
[1755655882244,3.00504641,180.04,180.02,5.5551]
[1755655882445,3.00504641,180.04,180.03,5.5548]
[1755655882645,0.03504641,180.04,180.03,5.5548]
[1755655883646,0.03504641,180.04,180.03,10.12960096]
[1755655883845,0.03504641,180.04,180.03,5.5548]
[1755655884442,0.03504641,180.04,180.03,10.67960096]
[1755655884651,0.03504641,180.04,180.03,6.1048]
[1755655885350,0.03504641,180.04,180.03,10.67960096]
[1755655885744,0.03504641,180.04,180.03,6.1048]
[1755655887052,517.15,180.13,180.03,0.52]
[1755655887253,517.15,180.13,180.05,4.57457955]
[1755655888056,2.97,180.12,180.05,4.57457955]
[1755655888249,2.97,180.12,180.06,4.57457955]
[1755655888449,2.97,180.12,180.05,4.57457955]
[1755655888956,3.06,180.11,180.07,5.5533]
[1755655889154,3.06,180.11,180.07,5.58839835]
[1755655889350,3.06,180.12,180.07,0.03509835]
[1755655889549,3.06,180.12,180.07,5.58859835]
[1755655890054,3.06,180.11,180.07,5.58859835]
[1755655890357,514.18,180.13,180.07,0.03509835]
[1755655890858,519.7319,180.13,180.07,0.03509835]
[1755655891053,3.06,180.11,180.07,0.03509835]
[1755655891256,519.7319,180.13,180.07,0.03509835]
[1755655891756,519.7319,180.13,180.01,9.14960192]
[1755655891757,3.06,180.11,180.04,4.57457955]
[1755655891956,3.06,180.11,180.03,4.57457955]
[1755655892358,530.88,180.13,180.0,4.57457955]
[1755655892560,3.06,180.08,179.99,10.13047955]
[1755655892754,3.06,180.06,180.02,0.55]
[1755655892961,140.54,180.08,180.02,4.57457955]
[1755655893162,0.03776266,180.05,180.04,0.55]
[1755655893359,0.03776266,180.05,180.02,4.57457955]
[1755655893557,3.09776266,180.05,180.01,4.57457955]
[1755655893755,3.09776266,180.05,180.04,5.5545]
[1755655893756,0.03776266,180.05,180.04,5.5545]
[1755655893961,0.03776266,180.05,180.04,10.12907955]
[1755655894163,0.03776266,180.05,180.04,10.67907955]
[1755655895768,514.1,180.13,180.09,5.5529]
[1755655895958,517.16,180.13,180.07,4.57940446]
[1755655896158,3.06,180.17,180.08,0.52]
[1755655896360,3.06,180.17,180.08,5.09940446]
[1755655896559,3.06,180.17,180.09,4.57940446]
[1755655897064,3.06,180.16,180.12,5.5518]
[1755655897361,3.06,180.16,180.08,0.52]
[1755655897362,3.06,180.16,180.13,5.5515]
[1755655897558,3.06,180.16,180.11,0.52]
[1755655897759,140.52,180.18,180.11,0.52]
[1755655898058,3.06,180.15,180.12,5.58905972]
[1755655899966,3.06,180.17,180.12,0.03725972]
[1755655900168,3.06,180.16,180.12,0.03725972]
[1755655900466,143.58,180.18,180.12,0.03725972]
[1755655901063,140.52,180.18,180.12,0.03725972]
[1755655901366,3.06,180.17,180.12,0.03725972]
[1755655901569,3.06,180.16,180.12,0.03725972]
[1755655902060,3.06,180.13,180.12,0.03725972]
[1755655904669,3.06,180.13,180.05,4.57940446]
[1755655904869,3.06,180.13,180.04,0.55]
[1755655905164,3.06,180.13,180.06,4.57940446]
[1755655905361,3.06,180.13,180.05,4.57940446]
[1755655905566,3.06,180.13,180.06,4.57940446]
[1755655905765,3.06,180.13,180.09,5.5529]
[1755655905965,0.04153662,180.11,180.09,5.5529]
[1755655906464,3.06,180.09,180.04,5.12940446]
[1755655906668,3.06,180.09,180.05,0.55]
[1755655907768,3.06,180.1,180.04,4.57940446]
[1755655908071,3.06,180.1,180.01,5.12940446]
[1755655908471,3.06,180.08,180.01,10.68460446]
[1755655908869,0.04186643,180.07,180.01,6.1052]
[1755655910782,3.06,180.06,179.99,4.57223681]
[1755655911075,3.06,180.06,179.98,4.57223681]
[1755655911479,0.03579435,180.04,179.98,4.57223681]
[1755655911779,0.03579435,180.04,180.0,0.55]
[1755655911978,3.09579435,180.04,180.0,6.1055]
[1755655912170,3.09579435,180.04,180.0,0.55]
[1755655912371,0.03579435,180.04,180.0,4.57223681]
[1755655912573,0.03579435,180.04,180.02,5.12223681]
[1755655912772,0.03579435,180.04,180.02,0.55]
[1755655912973,3.06,180.08,180.02,0.55]
[1755655913169,0.03949177,180.05,180.02,0.55]
[1755655913373,0.03949177,180.05,180.02,4.57223681]
[1755655913572,0.03949177,180.05,180.04,0.55]
[1755655913773,0.03949177,180.05,180.04,6.1043]
[1755655917979,0.03949177,180.05,180.04,10.67653681]
[1755655919079,0.03949177,180.05,180.04,4.57223681]
[1755655919275,2.93949177,180.05,180.01,4.57223681]
[1755655919585,0.03949177,180.05,180.02,6.1048]
[1755655920782,0.03949177,180.05,180.03,5.5546]
[1755655920988,0.03949177,180.05,180.03,0.54]
[1755655921186,0.03949177,180.05,180.04,0.54]
[1755655921586,0.03949177,180.05,180.04,6.0945]
[1755655922989,0.03949177,180.05,180.04,10.66673681]
[1755655928689,0.03949177,180.05,180.04,6.0945]
[1755655929088,0.03949177,180.05,180.04,10.6566618]
[1755655929290,0.03949177,180.05,180.04,10.65666537]
[1755655929489,0.03949177,180.05,180.04,6.0945]
[1755655929689,0.03949177,180.05,180.04,10.65677151]
[1755655929887,0.03949177,180.05,180.04,6.0945]
[1755655935792,0.03949177,180.05,180.04,12.17425016]
[1755655936391,0.03949177,180.05,180.04,6.0945]
[1755655936585,0.03949177,180.05,180.04,12.17426292]
[1755655937294,0.03949177,180.05,180.04,12.17561265]
[1755655941499,2.93949177,180.05,180.04,11.63561265]
[1755655941693,0.03949177,180.05,180.04,5.5545]
[1755655941893,0.03949177,180.05,180.04,6.0945]
[1755655942094,9.177e-05,180.05,180.04,6.0945]
[1755655943000,9.177e-05,180.05,180.04,15.24410192]
[1755655946500,9.177e-05,180.05,180.04,6.0945]
[1755655947701,9.177e-05,180.05,180.04,15.24410192]
[1755655949408,9.177e-05,180.05,180.04,14.70410192]
[1755655949709,9.177e-05,180.05,180.04,5.5545]
[1755655949909,9.177e-05,180.05,180.04,11.63321209]
[1755655950205,9.177e-05,180.05,180.04,11.63286001]
[1755655950401,9.177e-05,180.05,180.04,5.5545]
[1755655951310,9.177e-05,180.05,180.04,6.1045]
[1755655952304,9.177e-05,180.05,180.04,5.5545]
[1755655953500,3.08009177,180.05,180.04,5.5545]
[1755655956713,3.08009177,180.05,180.04,10.11865023]
[1755655957109,3.08009177,180.05,180.04,5.5545]
[1755655957518,9.177e-05,180.05,180.04,11.63313008]
[1755655958404,9.177e-05,180.05,180.04,6.1045]
[1755655958607,9.177e-05,180.05,180.04,15.25410192]
[1755655958812,9.177e-05,180.05,180.04,5.5545]
[1755655959211,9.177e-05,180.05,180.04,146.1745]
[1755655959405,3.08,180.14,180.13,5.5517]
[1755655959610,3.08,180.14,180.13,8.01511715]
[1755655959812,3.08,180.14,180.13,12.57201294]
[1755655960516,373.16,180.19,180.16,5.5506]
[1755655960717,3.08,180.17,180.16,5.5506]
[1755655961813,3.08,180.17,180.16,8.01401715]
[1755655962319,3.08,180.28,180.18,5.55]
[1755655962617,3.08,180.26,180.16,2.46341715]
[1755655963010,3.08,180.26,180.21,2.46341715]
[1755655963217,373.08,180.29,180.24,2.46341715]
[1755655963218,3.08,180.28,180.24,2.46341715]
[1755655963619,3.08,180.28,180.23,2.46341715]
[1755655964113,529.82,180.29,180.2,2.46341715]
[1755655964514,389.78,180.29,180.2,2.46341715]
[1755655964719,140.02,180.28,180.2,2.46341715]
[1755655965518,5.5477,180.27,180.23,2.46341715]
[1755655968618,5.5478,180.26,180.23,2.46341715]
[1755655969021,5.548,180.25,180.22,2.46341715]
[1755655969716,140.02,180.28,180.22,2.46341715]
[1755655971225,5.5481,180.25,180.22,2.46341715]
[1755655971614,140.02,180.28,180.22,2.46341715]
[1755655972421,5.5486,180.23,180.22,2.46341715]
[1755655972719,139.94,180.23,180.2,2.46341715]
[1755655973120,145.4889,180.23,180.2,2.46341715]
[1755655976128,5.5484,180.24,180.21,3.05]
[1755655976428,145.4284,180.24,180.23,2.46341715]
[1755655976629,5.5479,180.26,180.23,2.46341715]
[1755655976829,139.88,180.25,180.23,2.46341715]
[1755655977131,139.88,180.25,180.23,5.51341715]
[1755655977527,319.46341715,180.38,180.23,5.51341715]
[1755655977528,16.7,180.35,180.23,2.46341715]
[1755655977831,139.86,180.34,180.28,2.46341715]
[1755655978928,6.18360705,180.46,180.32,2.92]
[1755655979136,6.18360705,180.52,180.39,2.46341715]
[1755655979429,5.5428,180.42,180.39,2.46341715]
[1755655979631,139.86,180.41,180.39,2.46341715]
[1755655979925,145.4033,180.41,180.39,2.46341715]
[1755655980128,6.18360705,180.53,180.39,2.46341715]
[1755655980323,2.46341715,180.62,180.38,7.46552482]
[1755655980523,2.46341715,180.59,180.46,2.46341715]
[1755655980727,2.46341715,180.59,180.43,2.46341715]
[1755655981025,2.46341715,180.59,180.39,2.92]
[1755655981026,5.5406,180.49,180.48,0.03978944]
[1755655981230,142.08,180.49,180.48,0.03978944]
[1755655981532,142.08,180.49,180.44,2.46341715]
[1755655981733,142.08,180.49,180.47,0.03525016]
[1755655982029,5.5411,180.48,180.47,0.03525016]
[1755655983329,142.0,180.48,180.47,0.03525016]
[1755655983726,147.5409,180.48,180.47,0.03525016]
[1755655984727,148.1009,180.48,180.47,5.016e-05]
[1755655985033,5.5428,180.43,180.38,5.38341715]
[1755655985230,142.04,180.42,180.38,5.38341715]
[1755655985432,142.1,180.41,180.38,2.46341715]
[1755655985728,142.1,180.41,180.39,2.92]
[1755655985936,5.5428,180.43,180.39,2.92]
[1755655986228,142.0,180.42,180.39,2.92]
[1755655986931,147.5428,180.42,180.39,2.92]
[1755655987234,147.5428,180.42,180.38,2.46341715]
[1755655987431,5.5432,180.41,180.38,2.46341715]
[1755655987633,142.0,180.42,180.35,2.46341715]
[1755655988134,5.5431,180.41,180.35,2.46341715]
[1755655988331,0.03688918,180.4,180.35,2.46341715]
[1755655988635,0.03688918,180.4,180.37,2.92]
[1755655989629,0.03688918,180.4,180.39,2.92]
[1755655989826,141.81688918,180.4,180.39,2.92]
[1755655990025,16.7,180.49,180.39,2.92]
[1755655990334,0.03745813,180.41,180.39,2.92]
[1755655990534,0.03745813,180.41,180.38,2.46341715]
[1755655990837,141.78,180.43,180.38,2.46341715]
[1755655991137,141.84,180.43,180.42,2.92]
[1755655991336,141.84,180.44,180.41,2.46341715]
[1755655991533,141.84,180.44,180.43,2.92]
[1755655993029,16.7,180.59,180.44,2.92]
[1755655993229,144.80341715,180.58,180.45,2.46341715]
[1755655993439,0.03,180.57,180.45,2.46341715]
[1755655993635,0.03,180.52,180.45,2.46341715]
[1755655993835,142.42,180.51,180.45,2.46341715]
[1755655994241,142.4,180.5,180.45,2.46341715]
[1755655994440,142.4,180.5,180.46,2.92]
[1755655994938,142.4,180.5,180.45,2.46341715]
[1755655995133,0.03,180.52,180.47,2.92]
[1755655995340,142.3,180.51,180.45,2.46341715]
[1755655995537,142.3,180.51,180.48,2.92]
[1755655995939,142.3,180.51,180.45,5.38341715]
[1755655996631,142.33,180.51,180.45,2.46341715]
[1755655997237,5.5706,180.5,180.46,0.03553704]
[1755655997844,5.5407,180.49,180.46,0.03553704]
[1755655998136,0.03,180.47,180.46,0.03553704]
[1755655998933,5.5412,180.48,180.46,0.03553704]
[1755655999344,5.5712,180.48,180.46,0.03553704]
[1755656000337,0.03,180.48,180.46,0.03553704]
[1755656000537,5.5407,180.49,180.46,0.03553704]
[1755656000733,5.5707,180.49,180.46,0.03553704]
[1755656002444,5.541,180.48,180.46,0.03553704]
[1755656002852,141.82,180.47,180.46,2.95553704]
[1755656003253,0.03,180.53,180.46,2.95553704]
[1755656003454,141.82,180.52,180.46,2.95553704]
[1755656004354,141.82,180.51,180.46,2.95553704]
[1755656004554,141.82,180.51,180.47,2.92]
[1755656004755,141.82,180.51,180.48,2.92]
[1755656004956,141.82,180.51,180.49,2.92]
[1755656005551,5.5695,180.53,180.49,2.92]
[1755656005752,141.78,180.52,180.5,2.92]
[1755656005956,5.5395,180.53,180.5,2.92]
[1755656006151,141.76,180.53,180.49,2.92]
[1755656006554,141.76,180.53,180.5,0.03581783]
[1755656007057,147.2996,180.53,180.5,0.03581783]
[1755656007256,141.76,180.53,180.5,0.03581783]
[1755656007456,141.79,180.53,180.5,0.03581783]
[1755656007657,0.03,180.52,180.5,0.03581783]
[1755656007857,5.5397,180.52,180.5,0.03581783]
[1755656008357,5.5597,180.52,180.5,0.03581783]
[1755656008557,5.5397,180.52,180.5,0.03581783]
[1755656008958,147.1997,180.52,180.5,0.03581783]
[1755656009651,5.5397,180.52,180.5,0.03581783]
[1755656010457,5.56,180.51,180.5,0.03581783]
[1755656010658,141.52,180.53,180.5,0.03581783]
[1755656011757,5.5398,180.52,180.5,0.03581783]
[1755656012352,147.0595,180.53,180.5,0.03581783]
[1755656013262,5.5398,180.52,180.5,0.03581783]
[1755656014255,146.8794,180.53,180.5,0.03581783]
[1755656015259,146.7994,180.53,180.5,0.03581783]
[1755656015856,5.5594,180.53,180.5,0.03581783]
[1755656016055,372.62,180.6,180.51,2.46341715]
[1755656016255,141.2,180.59,180.51,2.46341715]
[1755656016457,0.02,180.59,180.51,2.46341715]
[1755656016654,141.18,180.58,180.51,2.46341715]
[1755656016856,141.2,180.58,180.53,3.08556829]
[1755656017058,5.5383,180.57,180.53,3.08556829]
[1755656017253,141.12,180.57,180.53,3.08556829]
[1755656017454,372.62,180.6,180.54,5.51341715]
[1755656017654,141.3,180.59,180.54,2.46341715]
[1755656017864,141.3,180.59,180.55,3.05]
[1755656018158,0.02,180.58,180.54,2.46341715]
[1755656018560,141.3,180.59,180.55,3.05]
[1755656018954,146.8376,180.59,180.54,8.00231715]
[1755656019156,146.8376,180.59,180.57,3.05]
[1755656020155,146.8376,180.59,180.55,3.05]
[1755656020357,146.8376,180.59,180.56,3.05]
[1755656021756,146.8376,180.59,180.54,8.00241715]
[1755656021962,141.1,180.58,180.57,3.05]
[1755656022161,141.1,180.58,180.55,3.05]
[1755656022458,146.6379,180.58,180.55,3.05]
[1755656023255,140.96,180.59,180.57,2.46341715]
[1755656023663,140.96,180.59,180.57,5.51341715]
[1755656023962,141.14,180.59,180.58,3.05]
[1755656024353,141.14,180.59,180.57,2.46341715]
[1755656024753,141.06,180.61,180.58,3.05]
[1755656024959,141.06,180.61,180.57,2.46341715]
[1755656025163,0.03,180.68,180.61,3.05]
[1755656025366,141.06,180.67,180.61,3.05]
[1755656025664,141.06,180.67,180.6,2.46341715]
[1755656025968,5.5358,180.65,180.62,0.03817667]
[1755656026264,0.03,180.71,180.63,5.51341715]
[1755656026469,0.03,180.69,180.63,5.51341715]
[1755656026854,5.5354,180.67,180.63,2.46341715]
[1755656027056,0.03,180.66,180.64,0.03527144]
[1755656027257,146.6357,180.65,180.64,0.03527144]
[1755656027459,141.13,180.65,180.56,3.05]
[1755656027658,0.03,180.64,180.56,3.05]
[1755656027863,141.1,180.65,180.54,2.46341715]
[1755656028063,0.03,180.64,180.52,3.05]
[1755656028363,0.03,180.64,180.53,3.05]
[1755656028558,5.5371,180.61,180.55,2.46341715]
[1755656028756,141.15950772,180.6,180.55,2.46341715]
[1755656029066,141.15950772,180.6,180.56,5.5385]
[1755656029261,141.18950772,180.6,180.56,5.5385]
[1755656029466,141.18950772,180.6,180.56,8.5885]
[1755656029665,141.15950772,180.6,180.56,8.5885]
[1755656029964,0.03950772,180.6,180.56,3.05]
[1755656030267,0.03950772,180.6,180.58,2.46341715]
[1755656030757,0.03950772,180.6,180.55,5.51341715]
[1755656030963,0.03,180.59,180.55,5.51341715]
[1755656031258,0.03950772,180.6,180.57,0.03812856]
[1755656031464,0.03950772,180.6,180.57,3.08812856]
[1755656031865,0.03950772,180.6,180.57,8.62612856]
[1755656032568,0.03950772,180.6,180.57,3.08812856]
[1755656032774,0.03950772,180.6,180.58,3.05]
[1755656032968,0.03950772,180.6,180.59,3.05]
[1755656034670,140.98,180.67,180.61,5.5369]
[1755656034862,140.98,180.67,180.62,5.51341715]
[1755656035065,146.5154,180.67,180.62,5.51341715]
[1755656035267,146.5154,180.67,180.63,3.05]
[1755656035462,146.5754,180.67,180.62,5.51341715]
[1755656035673,146.5754,180.67,180.62,8.00001715]
[1755656035969,5.5355,180.66,180.63,3.08978352]
[1755656036163,5.5955,180.66,180.63,0.03978352]
[1755656036363,5.5359,180.65,180.63,0.03978352]
[1755656036565,0.06,180.66,180.63,0.03978352]
[1755656037179,0.06,180.65,180.63,0.03978352]
[1755656038071,140.98,180.67,180.63,0.03978352]
[1755656038274,141.04,180.67,180.63,0.03978352]
[1755656038682,5.5354,180.67,180.63,3.10978352]
[1755656038981,5.5854,180.67,180.63,3.10978352]
[1755656040083,0.05,180.66,180.63,0.03978352]
[1755656040480,5.536,180.65,180.63,0.03978352]
[1755656040685,0.05,180.67,180.63,0.03978352]
[1755656041183,0.05,180.66,180.63,0.03978352]
[1755656041480,5.5861,180.64,180.63,0.03978352]
[1755656042488,5.5361,180.64,180.63,0.03978352]
[1755656043091,146.2361,180.64,180.63,0.03978352]
[1755656043388,140.7,180.64,180.63,0.03978352]
[1755656043789,146.2861,180.64,180.63,0.03978352]
[1755656044581,146.8461,180.64,180.63,8.352e-05]
[1755656044782,141.31,180.64,180.55,3.07]
[1755656045085,0.05,180.63,180.51,3.07]
[1755656045289,0.05,180.63,180.52,3.07]
[1755656045685,0.05,180.63,180.54,5.5389]